[Event "*** Titled Tuesday Blitz"]
[Site "Chess.com"]
[Date "2021.03.30"]
[Round "3"]
[White "MuhittinBuker"]
[Black "tteshan"]
[Result "1-0"]
[WhiteElo "2206"]
[BlackElo "2335"]
[TimeControl "180+1"]
[EndTime "10:27:04 PDT"]
[Termination "MuhittinBuker won by checkmate"]

1. d4 {[%clk 0:03:00.9]} 1... d5 {[%clk 0:03:00.3]} 2. c4 {[%clk 0:03:01.3]}
2... dxc4 {[%clk 0:03:01.2]} 3. Nc3 {[%clk 0:03:01.3]} 3... a6 {[%clk
0:03:00.8]} 4. a4 {[%clk 0:03:00.7]} 4... Nc6 {[%clk 0:03:00.7]} 5. e3 {[%clk
0:03:00.8]} 5... Na5 {[%clk 0:03:00.2]} 6. Nf3 {[%clk 0:02:59.9]} 6... Nf6
{[%clk 0:03:00.1]} 7. Ne5 {[%clk 0:02:59.4]} 7... Be6 {[%clk 0:02:57.8]} 8. Be2
{[%clk 0:02:53]} 8... g6 {[%clk 0:02:57.7]} 9. O-O {[%clk 0:02:52.9]} 9... Bg7
{[%clk 0:02:58.2]} 10. f4 {[%clk 0:02:49.2]} 10... O-O {[%clk 0:02:46.4]} 11.
Rf3 {[%clk 0:02:44.3]} 11... Ng4 {[%clk 0:02:32.4]} 12. Rg3 {[%clk 0:02:42.7]}
12... Nxe5 {[%clk 0:02:32]} 13. fxe5 {[%clk 0:02:42]} 13... c6 {[%clk
0:02:20.2]} 14. e4 {[%clk 0:02:38.7]} 14... Nb3 {[%clk 0:02:18.5]} 15. Be3
{[%clk 0:02:38.6]} 15... Nxa1 {[%clk 0:02:16.4]} 16. Qxa1 {[%clk 0:02:38.6]}
16... b5 {[%clk 0:02:09.1]} 17. Bf3 {[%clk 0:02:33.5]} 17... b4 {[%clk
0:02:01.1]} 18. Ne2 {[%clk 0:02:32.6]} 18... Qc7 {[%clk 0:01:34.9]} 19. Qc1
{[%clk 0:02:27.8]} 19... Rfd8 {[%clk 0:01:19.9]} 20. Nf4 {[%clk 0:02:26.6]}
20... Bh6 {[%clk 0:00:44.8]} 21. Nxe6 {[%clk 0:02:18.4]} 21... Bxe3+ {[%clk
0:00:44.9]} 22. Qxe3 {[%clk 0:02:17.8]} 22... fxe6 {[%clk 0:00:45.5]} 23. Rh3
{[%clk 0:02:15.2]} 23... Rf8 {[%clk 0:00:42.2]} 24. Bg4 {[%clk 0:02:06.1]} 24...
Qd7 {[%clk 0:00:37.7]} 25. Rh6 {[%clk 0:02:01.4]} 25... Rf7 {[%clk 0:00:26.8]}
26. h4 {[%clk 0:01:57.6]} 26... Kg7 {[%clk 0:00:21]} 27. h5 {[%clk 0:01:53]}
27... Rd8 {[%clk 0:00:17.9]} 28. d5 {[%clk 0:01:41.9]} 28... cxd5 {[%clk
0:00:15]} 29. Qg5 {[%clk 0:01:42]} 29... dxe4 {[%clk 0:00:12.4]} 30. hxg6 {[%clk
0:01:39.6]} 30... Qd4+ {[%clk 0:00:05.4]} 31. Kh2 {[%clk 0:01:39.5]} 31... Rf2
{[%clk 0:00:02.2]} 32. Rxh7+ {[%clk 0:01:28.1]} 32... Kg8 {[%clk 0:00:02.5]} 33.
Bxe6+ {[%clk 0:01:28.2]} 33... Kf8 {[%clk 0:00:02.2]} 34. Qxe7# {[%clk
0:01:28.2]} 1-0

[Event "*** Titled Tuesday Blitz"]
[Site "Chess.com"]
[Date "2021.03.30"]
[Round "3"]
[White "chessprincesa1"]
[Black "Cryptochess"]
[Result "0-1"]
[WhiteElo "2262"]
[BlackElo "2584"]
[TimeControl "180+1"]
[EndTime "10:27:06 PDT"]
[Termination "Cryptochess won by resignation"]

1. d4 {[%clk 0:03:00.9]} 1... Nf6 {[%clk 0:02:59.6]} 2. c4 {[%clk 0:02:46.2]}
2... e6 {[%clk 0:02:59.1]} 3. Nc3 {[%clk 0:02:45.8]} 3... Bb4 {[%clk 0:02:55.5]}
4. a3 {[%clk 0:02:46.1]} 4... Bxc3+ {[%clk 0:02:54.9]} 5. bxc3 {[%clk 0:02:47]}
5... b6 {[%clk 0:02:54.8]} 6. f4 {[%clk 0:02:44.1]} 6... Ba6 {[%clk 0:02:53.3]}
7. e3 {[%clk 0:02:42.7]} 7... Nc6 {[%clk 0:02:52]} 8. Nf3 {[%clk 0:02:43]} 8...
Na5 {[%clk 0:02:51]} 9. Bd3 {[%clk 0:02:41.8]} 9... Bxc4 {[%clk 0:02:43.3]} 10.
e4 {[%clk 0:02:40.6]} 10... Bxd3 {[%clk 0:02:41.2]} 11. Qxd3 {[%clk 0:02:41.5]}
11... d5 {[%clk 0:02:41.2]} 12. e5 {[%clk 0:02:38.6]} 12... Ne4 {[%clk
0:02:39.6]} 13. O-O {[%clk 0:02:37.4]} 13... O-O {[%clk 0:02:33.7]} 14. a4
{[%clk 0:02:18.9]} 14... c5 {[%clk 0:02:29.5]} 15. f5 {[%clk 0:02:15.9]} 15...
exf5 {[%clk 0:02:23.1]} 16. Nd2 {[%clk 0:02:07]} 16... Qd7 {[%clk 0:02:10.5]}
17. Qh3 {[%clk 0:01:51.8]} 17... Nxd2 {[%clk 0:01:37.9]} 18. Bxd2 {[%clk
0:01:52.7]} 18... Nb3 {[%clk 0:01:37.2]} 19. Bg5 {[%clk 0:01:42.6]} 19... Nxa1
{[%clk 0:01:34.7]} 20. Rxa1 {[%clk 0:01:39.9]} 20... cxd4 {[%clk 0:01:32.1]} 21.
cxd4 {[%clk 0:01:39]} 21... Rac8 {[%clk 0:01:30.6]} 22. Qg3 {[%clk 0:01:37.8]}
22... Kh8 {[%clk 0:01:28.6]} 23. Rf1 {[%clk 0:01:34.9]} 23... Rc4 {[%clk
0:01:27.5]} 24. Qh4 {[%clk 0:01:32.8]} 24... Qe6 {[%clk 0:01:18.3]} 25. h3
{[%clk 0:01:26.3]} 25... Rfc8 {[%clk 0:01:15.3]} 26. Rf4 {[%clk 0:01:16.8]}
26... Rxa4 {[%clk 0:01:10.3]} 27. Bf6 {[%clk 0:01:10.5]} 27... gxf6 {[%clk
0:00:48.6]} 28. exf6 {[%clk 0:01:11.4]} 28... Rg8 {[%clk 0:00:43.1]} 29. Qh6
{[%clk 0:01:09.2]} 29... Qe1+ {[%clk 0:00:35.5]} 30. Rf1 {[%clk 0:01:08.5]}
30... Rxg2+ {[%clk 0:00:25.8]} 31. Kxg2 {[%clk 0:01:07.6]} 31... Ra2+ {[%clk
0:00:25.6]} 32. Kf3 {[%clk 0:01:04.6]} 32... Qxf1+ {[%clk 0:00:25]} 33. Ke3
{[%clk 0:01:05.1]} 33... Qc1+ {[%clk 0:00:23.1]} 34. Kd3 {[%clk 0:01:05.1]}
34... Qxh6 {[%clk 0:00:20.9]} 0-1

[Event "*** Titled Tuesday Blitz"]
[Site "Chess.com"]
[Date "2021.03.30"]
[Round "3"]
[White "malakismayil"]
[Black "aljado"]
[Result "1-0"]
[WhiteElo "2327"]
[BlackElo "2091"]
[TimeControl "180+1"]
[EndTime "10:27:09 PDT"]
[Termination "malakismayil won by resignation"]

1. e4 {[%clk 0:03:00.9]} 1... c5 {[%clk 0:02:58.6]} 2. Nf3 {[%clk 0:03:00.1]}
2... e6 {[%clk 0:02:58.7]} 3. d4 {[%clk 0:02:59]} 3... cxd4 {[%clk 0:02:58.6]}
4. Nxd4 {[%clk 0:02:59.9]} 4... Bc5 {[%clk 0:02:57.3]} 5. Nb3 {[%clk 0:02:59.1]}
5... Bb6 {[%clk 0:02:57.2]} 6. c4 {[%clk 0:02:57.9]} 6... Nc6 {[%clk 0:02:56.8]}
7. c5 {[%clk 0:02:56.9]} 7... Bc7 {[%clk 0:02:55.9]} 8. Qg4 {[%clk 0:02:50.2]}
8... Qf6 {[%clk 0:02:42.9]} 9. Nc3 {[%clk 0:02:41.3]} 9... Nge7 {[%clk
0:02:40.1]} 10. h4 {[%clk 0:02:24.1]} 10... Nb4 {[%clk 0:02:32.5]} 11. Bg5
{[%clk 0:02:12]} 11... Qe5 {[%clk 0:02:22.9]} 12. f4 {[%clk 0:02:01.4]} 12...
Nc2+ {[%clk 0:01:20.7]} 13. Kd2 {[%clk 0:01:49.7]} 13... Ne3 {[%clk 0:01:10.3]}
14. Kxe3 {[%clk 0:01:41.3]} 14... Nf5+ {[%clk 0:00:58.7]} 15. Qxf5 {[%clk
0:01:33.9]} 15... Qxf5 {[%clk 0:00:53.7]} 16. exf5 {[%clk 0:01:32.4]} 16... exf5
{[%clk 0:00:54.2]} 17. Nd5 {[%clk 0:01:29.6]} 17... Bb8 {[%clk 0:00:50.9]} 18.
Re1 {[%clk 0:01:26.7]} 18... O-O {[%clk 0:00:46.6]} 19. Bd3 {[%clk 0:01:18.9]}
19... f6 {[%clk 0:00:45.9]} 20. Bxf6 {[%clk 0:01:04.4]} 20... gxf6 {[%clk
0:00:44.7]} 21. Bxf5 {[%clk 0:01:02.7]} 21... b6 {[%clk 0:00:42.3]} 22. c6
{[%clk 0:00:55.9]} 22... dxc6 {[%clk 0:00:38.8]} 23. Ne7+ {[%clk 0:00:53.6]}
23... Kf7 {[%clk 0:00:36.3]} 24. Nxc8 {[%clk 0:00:50.6]} 24... Bc7 {[%clk
0:00:34.5]} 25. Kf3 {[%clk 0:00:44.6]} 1-0

[Event "*** Titled Tuesday Blitz"]
[Site "Chess.com"]
[Date "2021.03.30"]
[Round "3"]
[White "serhanberat_ozdemir"]
[Black "The_Machine04"]
[Result "1-0"]
[WhiteElo "2678"]
[BlackElo "2437"]
[TimeControl "180+1"]
[EndTime "10:27:11 PDT"]
[Termination "serhanberat_ozdemir won on time"]

1. e4 {[%clk 0:03:00.9]} 1... d6 {[%clk 0:02:56.1]} 2. d4 {[%clk 0:03:00.7]}
2... Nf6 {[%clk 0:02:53.5]} 3. Nc3 {[%clk 0:03:01.2]} 3... e5 {[%clk 0:02:51]}
4. Nf3 {[%clk 0:03:00]} 4... Nbd7 {[%clk 0:02:50.4]} 5. g4 {[%clk 0:02:46.4]}
5... d5 {[%clk 0:02:47.3]} 6. exd5 {[%clk 0:02:13]} 6... e4 {[%clk 0:02:41.4]}
7. Nd2 {[%clk 0:02:12.2]} 7... Bb4 {[%clk 0:02:39.9]} 8. g5 {[%clk 0:02:06.3]}
8... Bxc3 {[%clk 0:02:34.8]} 9. bxc3 {[%clk 0:02:07.2]} 9... Nxd5 {[%clk
0:02:34]} 10. Nxe4 {[%clk 0:02:07.8]} 10... O-O {[%clk 0:02:32.1]} 11. Bd3
{[%clk 0:02:00]} 11... Re8 {[%clk 0:02:30.3]} 12. O-O {[%clk 0:01:57.3]} 12...
Nf8 {[%clk 0:02:25]} 13. Qf3 {[%clk 0:01:52.7]} 13... Ng6 {[%clk 0:02:04.6]} 14.
Bd2 {[%clk 0:01:52.5]} 14... Nh4 {[%clk 0:00:59.1]} 15. Qg3 {[%clk 0:01:37.9]}
15... Nf5 {[%clk 0:00:56.5]} 16. Qf3 {[%clk 0:01:38.1]} 16... Nh4 {[%clk
0:00:56.3]} 17. Qh5 {[%clk 0:01:38]} 17... Ng6 {[%clk 0:00:47]} 18. Rae1 {[%clk
0:01:36.4]} 18... Bf5 {[%clk 0:00:13]} 19. f4 {[%clk 0:01:28.9]} 19... Qd7
{[%clk 0:00:07.2]} 20. Qf3 {[%clk 0:01:13]} 20... c6 {[%clk 0:00:05.8]} 21. c4
{[%clk 0:01:07.7]} 21... Nb6 {[%clk 0:00:04]} 22. c3 {[%clk 0:01:02.5]} 1-0

[Event "*** Titled Tuesday Blitz"]
[Site "Chess.com"]
[Date "2021.03.30"]
[Round "3"]
[White "dosto07"]
[Black "Orlov_Oleg"]
[Result "0-1"]
[WhiteElo "2407"]
[BlackElo "2599"]
[TimeControl "180+1"]
[EndTime "10:27:11 PDT"]
[Termination "Orlov_Oleg won on time"]

1. e4 {[%clk 0:02:53.3]} 1... c5 {[%clk 0:02:03.9]} 2. Nf3 {[%clk 0:02:51.8]}
2... e6 {[%clk 0:02:03.3]} 3. d4 {[%clk 0:02:47.5]} 3... cxd4 {[%clk 0:02:04.2]}
4. Nxd4 {[%clk 0:02:47.1]} 4... Qb6 {[%clk 0:02:04.6]} 5. Nb3 {[%clk 0:02:45.9]}
5... Qc7 {[%clk 0:02:04.5]} 6. c4 {[%clk 0:02:41.2]} 6... a6 {[%clk 0:02:05.4]}
7. Nc3 {[%clk 0:02:41]} 7... Nf6 {[%clk 0:02:04.6]} 8. Be2 {[%clk 0:02:40.5]}
8... Nc6 {[%clk 0:02:05.5]} 9. Be3 {[%clk 0:02:37.7]} 9... Bb4 {[%clk
0:02:05.2]} 10. f3 {[%clk 0:02:27.6]} 10... d5 {[%clk 0:02:00.3]} 11. cxd5
{[%clk 0:02:24.2]} 11... exd5 {[%clk 0:02:01]} 12. exd5 {[%clk 0:02:21.9]} 12...
Qe5 {[%clk 0:01:56.2]} 13. Bd2 {[%clk 0:02:02.4]} 13... b5 {[%clk 0:01:57.1]}
14. dxc6 {[%clk 0:01:54.8]} 14... Nd5 {[%clk 0:01:58]} 15. Nxd5 {[%clk
0:01:48.4]} 15... Bxd2+ {[%clk 0:01:54.2]} 16. Qxd2 {[%clk 0:01:46.7]} 16... Be6
{[%clk 0:01:55.1]} 17. Nf4 {[%clk 0:01:00.6]} 17... Rd8 {[%clk 0:01:52.5]} 18.
Nd3 {[%clk 0:00:59.1]} 18... Qc7 {[%clk 0:01:49.8]} 19. Rc1 {[%clk 0:00:54.1]}
19... O-O {[%clk 0:01:49]} 20. O-O {[%clk 0:00:53.4]} 20... Bc4 {[%clk
0:01:47.8]} 21. Qf4 {[%clk 0:00:38]} 21... Qxc6 {[%clk 0:01:45.9]} 22. Kh1
{[%clk 0:00:31.7]} 22... Qe6 {[%clk 0:01:42.4]} 23. Rfe1 {[%clk 0:00:22.7]}
23... Rfe8 {[%clk 0:01:41.1]} 24. Bf1 {[%clk 0:00:21.2]} 24... Qb6 {[%clk
0:01:37.1]} 25. Rxe8+ {[%clk 0:00:19.8]} 25... Rxe8 {[%clk 0:01:37.3]} 26. Ne5
{[%clk 0:00:19.1]} 26... Be6 {[%clk 0:01:36.2]} 27. Nd4 {[%clk 0:00:16.6]} 27...
Bd5 {[%clk 0:01:35.4]} 28. Nf5 {[%clk 0:00:08.4]} 28... Qf6 {[%clk 0:01:34.5]}
29. Ng4 {[%clk 0:00:06.9]} 29... Qe6 {[%clk 0:01:33.7]} 30. h3 {[%clk
0:00:05.3]} 30... h6 {[%clk 0:01:33.2]} 31. Rd1 {[%clk 0:00:03]} 31... h5 {[%clk
0:01:32.8]} 32. Nge3 {[%clk 0:00:01.9]} 32... Bxa2 {[%clk 0:01:32]} 33. Rd6
{[%clk 0:00:02.8]} 33... Qe5 {[%clk 0:01:31]} 34. Qg5 {[%clk 0:00:02.8]} 34...
Be6 {[%clk 0:01:29.1]} 35. Rb6 {[%clk 0:00:01.6]} 35... Qxb2 {[%clk 0:01:28.3]}
0-1

[Event "*** Titled Tuesday Blitz"]
[Site "Chess.com"]
[Date "2021.03.30"]
[Round "3"]
[White "Kretov_Evgenij"]
[Black "Shuvalov"]
[Result "0-1"]
[WhiteElo "2566"]
[BlackElo "2409"]
[TimeControl "180+1"]
[EndTime "10:27:11 PDT"]
[Termination "Shuvalov won by resignation"]

1. d4 {[%clk 0:03:00.9]} 1... Nf6 {[%clk 0:02:59.5]} 2. c4 {[%clk 0:03:00.8]}
2... g6 {[%clk 0:02:59.1]} 3. Nc3 {[%clk 0:03:01]} 3... d5 {[%clk 0:02:59.4]} 4.
cxd5 {[%clk 0:03:00.9]} 4... Nxd5 {[%clk 0:03:00.3]} 5. Bd2 {[%clk 0:03:01.2]}
5... Bg7 {[%clk 0:03:00]} 6. e4 {[%clk 0:03:01.4]} 6... Nxc3 {[%clk 0:03:00.3]}
7. Bxc3 {[%clk 0:03:01.6]} 7... c5 {[%clk 0:03:01.2]} 8. d5 {[%clk 0:03:01.2]}
8... Bxc3+ {[%clk 0:03:00.4]} 9. bxc3 {[%clk 0:03:01]} 9... O-O {[%clk
0:03:01.3]} 10. Nf3 {[%clk 0:03:01.2]} 10... Nd7 {[%clk 0:02:58.7]} 11. Be2
{[%clk 0:03:00.8]} 11... Nf6 {[%clk 0:02:58]} 12. Nd2 {[%clk 0:02:57.3]} 12...
e6 {[%clk 0:02:50.3]} 13. c4 {[%clk 0:02:56.8]} 13... exd5 {[%clk 0:02:49.7]}
14. cxd5 {[%clk 0:02:56.8]} 14... Re8 {[%clk 0:02:46.7]} 15. Qc2 {[%clk
0:02:54]} 15... Qe7 {[%clk 0:02:27]} 16. Bb5 {[%clk 0:01:58.8]} 16... Nxe4
{[%clk 0:01:41.7]} 17. Bxe8 {[%clk 0:01:58.1]} 17... Ng3+ {[%clk 0:01:40.8]} 18.
Kd1 {[%clk 0:01:58.2]} 18... Nxh1 {[%clk 0:01:40.7]} 19. Bb5 {[%clk 0:01:31.6]}
19... Nxf2+ {[%clk 0:01:39.4]} 20. Kc1 {[%clk 0:01:31.5]} 20... Bf5 {[%clk
0:01:33.6]} 21. Qc3 {[%clk 0:01:30.2]} 21... Qe1+ {[%clk 0:01:04.8]} 22. Kb2
{[%clk 0:01:28.4]} 22... Nd1+ {[%clk 0:01:03.6]} 23. Rxd1 {[%clk 0:01:26.9]}
23... Qxd1 {[%clk 0:01:03.3]} 24. Bc4 {[%clk 0:00:57.1]} 24... b5 {[%clk
0:00:59.7]} 25. Bb3 {[%clk 0:00:47.8]} 25... Qe2 {[%clk 0:00:56.9]} 26. a3
{[%clk 0:00:34.8]} 26... a5 {[%clk 0:00:51.5]} 27. Kc1 {[%clk 0:00:25.4]} 27...
b4 {[%clk 0:00:49.2]} 28. Qxc5 {[%clk 0:00:25]} 28... Rc8 {[%clk 0:00:47.8]} 0-1

[Event "*** Titled Tuesday Blitz"]
[Site "Chess.com"]
[Date "2021.03.30"]
[Round "3"]
[White "JiiHart"]
[Black "ARMQUEEN"]
[Result "0-1"]
[WhiteElo "2035"]
[BlackElo "2305"]
[TimeControl "180+1"]
[EndTime "10:27:11 PDT"]
[Termination "ARMQUEEN won on time"]

1. e4 {[%clk 0:03:00.9]} 1... c5 {[%clk 0:02:59]} 2. Nf3 {[%clk 0:03:01]} 2...
Nc6 {[%clk 0:02:58.9]} 3. d4 {[%clk 0:03:01.4]} 3... cxd4 {[%clk 0:02:59.8]} 4.
Nxd4 {[%clk 0:03:01.9]} 4... g6 {[%clk 0:03:00.2]} 5. c4 {[%clk 0:03:01.4]} 5...
Nf6 {[%clk 0:02:59.7]} 6. Nc3 {[%clk 0:03:00.3]} 6... Nxd4 {[%clk 0:02:59.8]} 7.
Qxd4 {[%clk 0:02:59.7]} 7... d6 {[%clk 0:03:00.7]} 8. Be2 {[%clk 0:02:51.8]}
8... Bg7 {[%clk 0:03:00.5]} 9. Be3 {[%clk 0:02:44]} 9... O-O {[%clk 0:03:00.4]}
10. Qd2 {[%clk 0:02:44]} 10... a5 {[%clk 0:03:01]} 11. O-O {[%clk 0:02:42.6]}
11... a4 {[%clk 0:03:00.4]} 12. Rac1 {[%clk 0:02:38.7]} 12... Qa5 {[%clk
0:03:00]} 13. Bh6 {[%clk 0:01:49.1]} 13... Be6 {[%clk 0:02:47.6]} 14. Bxg7
{[%clk 0:01:45.8]} 14... Kxg7 {[%clk 0:02:46.5]} 15. Qd4 {[%clk 0:01:27.4]}
15... Rfc8 {[%clk 0:02:38.4]} 16. Nd5 {[%clk 0:01:10]} 16... Bxd5 {[%clk
0:02:32.7]} 17. exd5 {[%clk 0:01:09.7]} 17... Qb4 {[%clk 0:02:22.4]} 18. Qc3
{[%clk 0:00:49.3]} 18... Qc5 {[%clk 0:02:13.7]} 19. Bf3 {[%clk 0:00:34.3]} 19...
Rab8 {[%clk 0:02:06.2]} 20. Rfe1 {[%clk 0:00:33.8]} 20... Rc7 {[%clk 0:02:02.3]}
21. b4 {[%clk 0:00:30]} 21... axb3 {[%clk 0:02:01.8]} 22. axb3 {[%clk
0:00:30.4]} 22... b5 {[%clk 0:02:01.9]} 23. g4 {[%clk 0:00:21.1]} 23... h6
{[%clk 0:01:59.3]} 24. h4 {[%clk 0:00:21.1]} 24... Kg8 {[%clk 0:01:53.3]} 25. g5
{[%clk 0:00:20.9]} 25... hxg5 {[%clk 0:01:53.2]} 26. hxg5 {[%clk 0:00:21.8]}
26... Nh7 {[%clk 0:01:50.6]} 27. Kg2 {[%clk 0:00:22]} 27... bxc4 {[%clk
0:01:37.3]} 28. Rh1 {[%clk 0:00:17.3]} 28... Rxb3 {[%clk 0:01:34.8]} 29. Qd2
{[%clk 0:00:04.2]} 29... Rd3 {[%clk 0:01:23]} 30. Qf4 {[%clk 0:00:04.4]} 30...
Qd4 {[%clk 0:01:21.5]} 31. Qh2 {[%clk 0:00:04]} 31... Qg7 {[%clk 0:01:19.3]} 0-1

[Event "*** Titled Tuesday Blitz"]
[Site "Chess.com"]
[Date "2021.03.30"]
[Round "3"]
[White "NoGuru"]
[Black "theredking89"]
[Result "0-1"]
[WhiteElo "2329"]
[BlackElo "2548"]
[TimeControl "180+1"]
[EndTime "10:27:14 PDT"]
[Termination "theredking89 won by resignation"]

1. c4 {[%clk 0:03:00.9]} 1... Nf6 {[%clk 0:02:59.9]} 2. Nf3 {[%clk 0:03:00.9]}
2... g6 {[%clk 0:03:00.8]} 3. Nc3 {[%clk 0:03:00.5]} 3... Bg7 {[%clk 0:03:01.7]}
4. e4 {[%clk 0:03:00.3]} 4... O-O {[%clk 0:02:58.8]} 5. d4 {[%clk 0:03:00.2]}
5... d6 {[%clk 0:02:58.9]} 6. Be2 {[%clk 0:02:58.7]} 6... c5 {[%clk 0:02:58.2]}
7. O-O {[%clk 0:02:53.4]} 7... cxd4 {[%clk 0:02:58.8]} 8. Nxd4 {[%clk
0:02:53.5]} 8... Nc6 {[%clk 0:02:59.7]} 9. Be3 {[%clk 0:02:53.8]} 9... Bd7
{[%clk 0:02:59.7]} 10. h3 {[%clk 0:02:48.5]} 10... Nxd4 {[%clk 0:02:59.7]} 11.
Bxd4 {[%clk 0:02:48.8]} 11... Bc6 {[%clk 0:03:00.6]} 12. Qc2 {[%clk 0:02:49.1]}
12... a5 {[%clk 0:02:58.9]} 13. Rad1 {[%clk 0:02:48.9]} 13... Qc7 {[%clk
0:02:58.9]} 14. Rfe1 {[%clk 0:02:26.2]} 14... Rac8 {[%clk 0:02:58.3]} 15. Bf1
{[%clk 0:02:19.8]} 15... Nd7 {[%clk 0:02:57.6]} 16. Bxg7 {[%clk 0:02:15.3]}
16... Kxg7 {[%clk 0:02:58.5]} 17. Nd5 {[%clk 0:02:14]} 17... Bxd5 {[%clk
0:02:58.5]} 18. exd5 {[%clk 0:02:14.1]} 18... Nf6 {[%clk 0:02:58.2]} 19. a4
{[%clk 0:02:05.1]} 19... Rfe8 {[%clk 0:02:55.6]} 20. b3 {[%clk 0:02:04.4]} 20...
Qc5 {[%clk 0:02:50.5]} 21. Qd2 {[%clk 0:01:58.8]} 21... b6 {[%clk 0:02:47.1]}
22. Re3 {[%clk 0:01:58.4]} 22... Qc7 {[%clk 0:02:16.1]} 23. Rde1 {[%clk
0:01:57.1]} 23... Rcd8 {[%clk 0:02:05.5]} 24. Qe2 {[%clk 0:01:52.7]} 24... e5
{[%clk 0:01:54.2]} 25. dxe6 {[%clk 0:01:50.7]} 25... Rxe6 {[%clk 0:01:52.5]} 26.
Rxe6 {[%clk 0:01:50.3]} 26... fxe6 {[%clk 0:01:52.8]} 27. g3 {[%clk 0:01:23.4]}
27... d5 {[%clk 0:01:40.2]} 28. cxd5 {[%clk 0:01:14.1]} 28... exd5 {[%clk
0:01:41.1]} 29. Qe7+ {[%clk 0:00:35.9]} 29... Qxe7 {[%clk 0:01:40.7]} 30. Rxe7+
{[%clk 0:00:36.5]} 30... Kf8 {[%clk 0:01:38.7]} 31. Rb7 {[%clk 0:00:34.9]} 31...
Rd6 {[%clk 0:01:36.4]} 32. Bb5 {[%clk 0:00:26.4]} 32... d4 {[%clk 0:01:35.6]}
33. Bd3 {[%clk 0:00:21.6]} 33... Nd7 {[%clk 0:01:31]} 34. Kf1 {[%clk 0:00:20.3]}
34... Nc5 {[%clk 0:01:27]} 35. Rb8+ {[%clk 0:00:20.4]} 35... Kg7 {[%clk
0:01:26.6]} 36. Bc4 {[%clk 0:00:19]} 36... d3 {[%clk 0:01:23.1]} 37. Ke1 {[%clk
0:00:19.1]} 37... d2+ {[%clk 0:01:20.5]} 38. Kd1 {[%clk 0:00:19.3]} 38... Ne4
{[%clk 0:01:20.3]} 39. Be2 {[%clk 0:00:18.6]} 39... Nc3+ {[%clk 0:01:17.5]} 40.
Kc2 {[%clk 0:00:18.3]} 40... Nxe2 {[%clk 0:01:18]} 0-1

[Event "*** Titled Tuesday Blitz"]
[Site "Chess.com"]
[Date "2021.03.30"]
[Round "3"]
[White "AndrewMaco"]
[Black "GigaQuparadze"]
[Result "0-1"]
[WhiteElo "2623"]
[BlackElo "2874"]
[TimeControl "180+1"]
[EndTime "10:27:15 PDT"]
[Termination "GigaQuparadze won by resignation"]

1. e4 {[%clk 0:03:00.9]} 1... c5 {[%clk 0:02:59.3]} 2. Nf3 {[%clk 0:03:00.5]}
2... e6 {[%clk 0:02:59.5]} 3. g3 {[%clk 0:03:00.4]} 3... Nc6 {[%clk 0:02:58.7]}
4. Bg2 {[%clk 0:03:00.5]} 4... Nf6 {[%clk 0:02:58.9]} 5. Nc3 {[%clk 0:02:59.6]}
5... d5 {[%clk 0:02:51.7]} 6. exd5 {[%clk 0:02:59.5]} 6... exd5 {[%clk
0:02:52.6]} 7. d4 {[%clk 0:02:59.9]} 7... Bg4 {[%clk 0:02:51.5]} 8. dxc5 {[%clk
0:02:43.3]} 8... d4 {[%clk 0:02:43.7]} 9. Ne2 {[%clk 0:02:41.3]} 9... Bxc5
{[%clk 0:02:36]} 10. O-O {[%clk 0:02:41.3]} 10... O-O {[%clk 0:02:35.9]} 11. Nf4
{[%clk 0:02:40.7]} 11... Re8 {[%clk 0:02:24.2]} 12. a3 {[%clk 0:02:39.9]} 12...
Rc8 {[%clk 0:02:23]} 13. Nd3 {[%clk 0:02:36.3]} 13... Bb6 {[%clk 0:02:22]} 14.
h3 {[%clk 0:02:30.1]} 14... Bf5 {[%clk 0:02:21.8]} 15. Bg5 {[%clk 0:02:23.2]}
15... h6 {[%clk 0:02:21.2]} 16. Bxf6 {[%clk 0:02:20.7]} 16... Qxf6 {[%clk
0:02:22.1]} 17. Qd2 {[%clk 0:02:17.9]} 17... Ba5 {[%clk 0:02:14.1]} 18. b4
{[%clk 0:02:11.9]} 18... Bb6 {[%clk 0:02:12.7]} 19. Rfe1 {[%clk 0:02:10]} 19...
Red8 {[%clk 0:02:06.6]} 20. Qf4 {[%clk 0:02:03.1]} 20... Bc7 {[%clk 0:02:04.6]}
21. Qd2 {[%clk 0:01:55.4]} 21... Ne7 {[%clk 0:02:02.8]} 22. Nc5 {[%clk
0:01:42.8]} 22... b6 {[%clk 0:02:00.6]} 23. Ne4 {[%clk 0:01:35.8]} 23... Bxe4
{[%clk 0:01:47.9]} 24. Rxe4 {[%clk 0:01:33.3]} 24... d3 {[%clk 0:01:47.9]} 25.
Rae1 {[%clk 0:01:30.3]} 25... dxc2 {[%clk 0:01:46.8]} 26. Qxc2 {[%clk
0:01:30.4]} 26... Bxg3 {[%clk 0:01:43.2]} 27. Qe2 {[%clk 0:01:27.4]} 27... Nf5
{[%clk 0:01:43]} 28. fxg3 {[%clk 0:01:05.9]} 28... Nxg3 {[%clk 0:01:43.9]} 29.
Qa6 {[%clk 0:01:03.3]} 29... Nxe4 {[%clk 0:01:41.9]} 30. Rxe4 {[%clk 0:01:04.2]}
30... Rc1+ {[%clk 0:01:40.7]} 31. Re1 {[%clk 0:00:59.4]} 31... Rxe1+ {[%clk
0:01:36.4]} 32. Nxe1 {[%clk 0:01:00.3]} 32... Qd4+ {[%clk 0:01:35.3]} 33. Kh1
{[%clk 0:00:59.3]} 33... Qd1 {[%clk 0:01:32.3]} 34. Qf1 {[%clk 0:00:59.1]} 34...
Re8 {[%clk 0:01:30.7]} 35. Nf3 {[%clk 0:00:58.6]} 35... Qxf1+ {[%clk 0:01:29.9]}
36. Bxf1 {[%clk 0:00:59.5]} 36... Re3 {[%clk 0:01:30.1]} 37. Kg2 {[%clk
0:00:58.8]} 37... Rxa3 {[%clk 0:01:29.9]} 38. b5 {[%clk 0:00:59.4]} 38... g6
{[%clk 0:01:25.3]} 39. Ne5 {[%clk 0:00:55.7]} 39... Kg7 {[%clk 0:01:25.4]} 40.
Bc4 {[%clk 0:00:51.3]} 40... f5 {[%clk 0:01:25.1]} 41. Nc6 {[%clk 0:00:49]}
41... Kf6 {[%clk 0:01:23]} 42. Be2 {[%clk 0:00:47.5]} 42... h5 {[%clk 0:01:22]}
43. Bf1 {[%clk 0:00:45.2]} 43... h4 {[%clk 0:01:21.9]} 44. Be2 {[%clk
0:00:45.4]} 44... g5 {[%clk 0:01:22.2]} 45. Bd1 {[%clk 0:00:42.5]} 45... g4
{[%clk 0:01:21.9]} 46. hxg4 {[%clk 0:00:42.2]} 46... fxg4 {[%clk 0:01:22.8]} 47.
Bxg4 {[%clk 0:00:42.2]} 47... Rg3+ {[%clk 0:01:21.9]} 48. Kh2 {[%clk 0:00:42.9]}
48... Rxg4 {[%clk 0:01:22.3]} 49. Kh3 {[%clk 0:00:43.8]} 49... Ra4 {[%clk
0:01:21.1]} 0-1